fUST/lending_fUST_20250501
["ID","MTS","AMOUNT","RATE_DAILY","PERIOD"]
[359513232,1746083438498,-388.16447987,0.0003165,2]
[359513233,1746083438508,-49577.0427969,0.0003167,2]
[359513234,1746083438519,-500.0,0.00031673,5]
[359513235,1746083438529,-300.0,0.00031673,5]
[359513236,1746083438539,-500.0,0.00031673,5]
[359513237,1746083438548,-500.0,0.00031673,2]
[359513238,1746083438559,-204.22186963,0.00031673,5]
[359513239,1746083438568,-500.0,0.00031673,5]
[359513240,1746083438578,-500.0,0.00031673,5]
[359513241,1746083438589,-500.0,0.00031673,5]
[359513242,1746083438601,-500.0,0.00031673,5]
[359513243,1746083438613,-500.0,0.00031673,5]
[359513244,1746083438624,-500.0,0.00031673,5]
[359513245,1746083438635,-108559.93,0.0003168,2]
[359513246,1746083438646,-626.74263373,0.0003169,2]
[359513247,1746083438659,-49577.0427969,0.0003169,2]
[359513248,1746083438669,-250.0,0.000317,2]
[359513249,1746083438679,-49577.0427969,0.0003177,2]
[359513250,1746083438689,-500.0,0.00031773,5]
[359513251,1746083438699,-500.0,0.00031773,5]
[359513252,1746083438710,-500.0,0.00031773,5]
[359513253,1746083438722,-500.0,0.00031773,5]
[359513254,1746083438734,-500.0,0.00031773,5]
[359513255,1746083438745,-500.0,0.00031773,5]
[359513256,1746083438757,-500.0,0.00031773,5]
[359513257,1746083438767,-500.0,0.00031773,5]
[359513258,1746083438778,-500.0,0.00031773,5]
[359513259,1746083438790,-500.82118358,0.00031773,5]
[359513260,1746083438801,-500.0,0.00031773,5]
[359513261,1746083438811,-501.19091362,0.00031773,5]
[359513262,1746083438821,-501.14258668,0.00031773,5]
[359513263,1746083438831,-520.82326005,0.00031773,5]
[359513264,1746083438842,-49577.0427969,0.0003179,2]
[359513265,1746083438852,-10000.0,0.000318,30]
[359513266,1746083438863,-10000.0,0.000318,20]
[359513267,1746083438873,-10000.0,0.000318,7]
[359513268,1746083438886,-10000.0,0.000318,15]
[359513269,1746083438897,-4155.05,0.000318,15]
[359513270,1746083438908,-160.0,0.000318,7]
[359513271,1746083438919,-160.0,0.000318,30]
[359513272,1746083438930,-500.0,0.000318,30]
[359513273,1746083438941,-388.16447987,0.00031963,2]
[359513274,1746083438953,-472.872276,0.00032,30]
[359513275,1746083438964,-640.22999559,0.00032004,2]
[359513276,1746083438974,-388.16447987,0.00032155,2]
[359513277,1746083438984,-388.16447987,0.00032358,2]
[359513278,1746083438994,-215.0738,0.0003257,2]
[359513279,1746083439123,-388.16447989,0.00032823,2]
[359513280,1746083439151,-156.74873261,0.00032877,7]
[359513281,1746083439160,-770.8,0.0003294,3]
[359513282,1746083439170,-257.11,0.0003294,3]
[359513283,1746083439180,-500.0,0.00032973,5]
[359513284,1746083439189,-564.91823638,0.00032973,5]
[359513285,1746083439199,-501.13609394,0.00032973,5]
[359513286,1746083439208,-150.0,0.00032973,5]
[359513287,1746083439218,-626.74263372,0.00032987,2]
[359513288,1746083439227,-182.07995741,0.00032987,2]
[359513289,1746083439237,-160.0,0.00032988,2]
[359513290,1746083439247,-421.4777418,0.00032988,2]
[359513291,1746083439256,-49577.0427969,0.0003299,2]
[359513292,1746083439266,-41806.12927996,0.00033,2]
[359513293,1746083439276,-3227.612186,0.00033,7]
[359513294,1746083439285,-1278.52,0.00033,30]
[359513295,1746083439295,-151.0,0.00033,15]
[359513296,1746083439305,-2360.39041629,0.00033097,2]
[359513297,1746083439314,-849.051678,0.00033165,2]
[359513298,1746083439324,-250.0,0.00033304,2]
[359513299,1746083439334,-151.0,0.000334,11]
[359513300,1746083439345,-183.513,0.00033505,36]
[359513301,1746083439355,-250.0,0.00033521,5]
[359513302,1746083439365,-151.0,0.000338,20]
[359513303,1746083439375,-250.0,0.00034,30]
[359513304,1746083439384,-587.0,0.00034026,2]
[359513305,1746083439395,-350.0,0.00034068,5]
[359513306,1746083439405,-151.0,0.000342,11]
[359513307,1746083439414,-151.0,0.000342,14]
[359513308,1746083439426,-217.45503521,0.00034233,30]
[359513309,1746083439435,-626.74263372,0.00034283,2]
[359513310,1746083439445,-5000.0,0.0003434,2]
[359513311,1746083439454,-151.0,0.000346,16]
[359513312,1746083439463,-450.0,0.00034616,5]
[359513313,1746083439473,-179.78425889,0.00034705,13]
[359513314,1746083439483,-1103.10565588,0.000349,2]
[359513315,1746083439493,-500.83280941,0.00034973,2]
[359513316,1746083439502,-500.0,0.00034973,5]
[359513317,1746083439511,-160.55894383,0.00034973,2]
[359513318,1746083439521,-510.49861526,0.00034973,5]
[359513319,1746083439531,-500.0,0.00034973,5]
[359513320,1746083439540,-500.0,0.00034973,5]
[359513321,1746083439550,-500.0,0.00034973,5]
[359513322,1746083439559,-500.0,0.00034973,3]
[359513323,1746083439569,-500.0,0.00034973,5]
[359513324,1746083439578,-500.0,0.00034973,5]
[359513325,1746083439588,-500.0,0.00034973,5]
[359513326,1746083439597,-20627.45019603,0.00034979,3]
[359513327,1746083439607,-299883.50391417,0.00034979,2]
[359513329,1746083440040,-5506.59063929,0.00034979,2]
[359513377,1746083440693,-151.619246,0.00033,14]
[359513379,1746083440703,-9342.59447001,0.00034979,2]
[359513692,1746083443823,-64118.13593427,0.00034979,2]
[359513730,1746083446237,-37.02251785,0.00034979,2]
[359513731,1746083487519,421.4777418,0.00028,3]
[359513732,1746083538442,169.0,0.00029,7]
[359513737,1746083967358,-300.0,0.00024999,2]
[359513738,1746083967382,-7141.0,0.00025,8]
[359513739,1746084005179,1744.77,0.00025,30]
[359513740,1746084426129,-234.07510017,0.00024998,2]
[359513741,1746084496638,785.42130864,0.000125,2]
[359513759,1746084561092,-410.27838435,0.0002399,2]
[359513760,1746084561113,-174.16373671,0.00024,2]
[359513761,1746084561136,-965.92489983,0.00024998,2]
[359513762,1746084561157,-900.0,0.00024998,2]
[359513763,1746084561179,-300.0,0.00024998,2]
[359513764,1746084561200,-324.92628175,0.00024999,2]
[359513765,1746084561222,-500.0,0.00024999,2]
[359513766,1746084561243,-328.18950156,0.00024999,2]
[359513767,1746084561267,-500.0,0.00024999,2]
[359513768,1746084561292,-212.2928987,0.00024999,2]
[359513769,1746084561316,-546.98265865,0.00024999,2]
[359513770,1746084561340,-3505.45572196,0.00025,8]
[359513771,1746084563260,-602.01031989,0.00024999,2]
[359513773,1746084570139,-49397.98968011,0.00024999,2]
[359513774,1746084570161,-54670.9214818,0.00025,8]
[359513800,1746084632207,-532.91520808,0.000229,2]
[359513801,1746084632217,-1314.14057418,0.00024915,2]
[359513802,1746084632232,-1084.98561032,0.00024915,2]
[359513803,1746084632241,-502.0,0.00024999,2]
[359513804,1746084632252,-1364.50595359,0.00025,8]
[359513805,1746084632263,-1400.56653344,0.00025,8]
[359513806,1746084632275,-29027.71410452,0.00025,8]
[359513807,1746084632285,-622.68265478,0.0002578,2]
[359513808,1746084632294,-1006.71970713,0.0002588,2]
[359513826,1746084638314,-1406.79683215,0.0002588,2]
[359513827,1746084638323,-227.44839723,0.00025889,2]
[359513828,1746084638333,-579.73265109,0.00025889,2]
[359513829,1746084638343,-38882.2371244,0.0002589,2]
[359513830,1746084638352,-2413.51653928,0.0002589,2]
[359513831,1746084638362,-212.36169448,0.000259,14]
[359513832,1746084638372,-100000.0,0.0002599,2]
[359513833,1746084638381,-500.0,0.00026367,2]
[359513834,1746084638392,-500.0,0.00026367,2]
[359513835,1746084638401,-500.0,0.00026367,2]
[359513836,1746084638411,-500.0,0.00026367,2]
[359513837,1746084638420,-2777.32966617,0.000269,2]
[359513838,1746084638430,-7240.54961784,0.0002698,2]
[359513839,1746084638440,-116646.711373,0.0002699,2]
[359513840,1746084638449,-4827.03307856,0.0002699,2]
[359513841,1746084638459,-99703.65680307,0.00027,2]
[359513842,1746084638468,-313.5174939,0.00027,3]
[359513843,1746084638478,-951.340138,0.00027397,2]
[359513844,1746084638487,-473.1538587,0.000275,2]
[359513845,1746084638497,-532.91520808,0.000279,2]
[359513846,1746084638506,-622.68265477,0.00027919,2]
[359513847,1746084638515,-250.65441137,0.0002899,2]
[359513848,1746084638525,-22260.70397327,0.00029,3]
[359513849,1746084638536,-873.09486309,0.00029,2]
[359513850,1746084638545,-841.10298755,0.00029,3]
[359513851,1746084638554,-210.358353,0.00029689,2]
[359513852,1746084638564,-2777.32966615,0.00029739,2]
[359513853,1746084638574,-198.903293,0.00029926,2]
[359513854,1746084638584,-198.903293,0.00029926,120]
[359513855,1746084638594,-2413.51653928,0.0002998,2]
[359513856,1746084638603,-38882.2371244,0.0002999,2]
[359513857,1746084638613,-2413.51653928,0.0002999,2]
[359513858,1746084638623,-17786.02038531,0.0003,7]
[359513859,1746084638633,-515.05970434,0.0003,15]
[359513860,1746084638642,-369.10312268,0.0003,2]
[359513861,1746084638651,-622.68265477,0.00030059,2]
[359513862,1746084638661,-24900.0,0.00031577,2]
[359513863,1746084638670,-206.239359,0.00031644,2]
[359513864,1746084638679,-250.0,0.00031699,2]
[359513865,1746084638689,-606.60952904,0.00031846,2]
[359513866,1746084638698,-1000.0,0.00031846,5]
[359513867,1746084638707,-500.0,0.00031846,5]
[359513868,1746084638717,-4827.03307856,0.0003197,2]
[359513869,1746084638726,-157.49,0.00031973,2]
[359513870,1746084638735,-152.1305,0.00031973,2]
[359513871,1746084638744,-77764.4742487,0.0003198,2]
[359513872,1746084638754,-4827.03307856,0.0003198,2]
[359513873,1746084638763,-250.0,0.00032,30]
[359513874,1746084638772,-108519.57187927,0.00032,30]
[359513875,1746084638781,-622.68265477,0.00032198,2]
[359513876,1746084638790,-182.07995741,0.0003234,2]
[359513877,1746084638799,-421.4777418,0.0003234,2]
[359513878,1746084638808,-1144.828149,0.0003235,2]
[359513879,1746084638818,-900.0,0.000325,2]
[359513880,1746084638827,-427.8109829,0.00032558,2]
[359513881,1746084638837,-2777.32966615,0.00032578,2]
[359513882,1746084638847,-4184.52,0.000329,7]
[359513883,1746084638857,-532.91520808,0.000329,2]
[359513884,1746084638866,-1518.56,0.00033,30]
[359513885,1746084638876,-951.340138,0.00033165,2]
[359513886,1746084638886,-212.36169446,0.000334,28]
[359513887,1746084638899,-183.514,0.00033495,35]
[359513888,1746084638908,-802.03769342,0.00034,2]
[359513889,1746084638918,-250.0,0.00034,30]
[359513890,1746084638928,-151.0,0.000342,14]
[359513891,1746084638939,-500.0,0.00034271,5]
[359513892,1746084638950,-500.0,0.00034271,5]
[359513893,1746084638959,-622.68265477,0.00034338,2]
[359513894,1746084638969,-2413.51653928,0.00034422,2]
[359513895,1746084638978,-151.0,0.000345,17]
[359513896,1746084638987,-151.0,0.000347,15]
[359513897,1746084638996,-179.82017982,0.00034705,13]
[359513898,1746084639006,-160.0,0.00034946,2]
[359513899,1746084639015,-81095.38918776,0.00034972,2]
[359513900,1746084639071,-608.92218227,0.00034972,2]
[359513901,1746084639084,-554.03877979,0.00034972,2]
[359513907,1746084640587,-6646.63303208,0.00034972,2]
[359513909,1746084640599,-684.48492881,0.00034972,2]
[359513918,1746084643320,-248933.01881929,0.00034972,2]
[359513920,1746084643330,-10313.72509801,0.00034972,3]
[359513921,1746084643340,-500.0,0.00034973,5]
[359513922,1746084643350,-338.27668321,0.00034973,5]
[359513923,1746084643360,-195.34194848,0.00034973,5]
[359513924,1746084643369,-500.0,0.00034973,5]
[359513925,1746084643379,-595.68490508,0.00034973,5]
[359513926,1746084643389,-728.162212,0.0003498,14]
[359513927,1746084643398,-728.162212,0.0003498,14]
[359513928,1746084643408,-151.0,0.0003499,14]
[359513929,1746084643417,-151.0,0.0003499,14]
[359513930,1746084643427,-4827.03307856,0.0003499,2]
[359513931,1746084643436,-151.0,0.0003499,14]
[359513932,1746084643446,-151.0,0.0003499,14]
[359513933,1746084643456,-100000.0,0.00035,30]
[359513934,1746084643465,-1000.0,0.00035,120]
[359513935,1746084643475,-151.0,0.00035,14]
[359513936,1746084643485,-158.624793,0.00035,14]
[359513937,1746084643494,-151.0,0.00035,14]
[359513938,1746084643504,-151.0,0.00035,14]
[359513939,1746084643513,-151.0,0.00035,14]
[359513940,1746084643523,-151.0,0.00035,14]
[359513941,1746084643533,-151.0,0.00035,14]
[359513942,1746084643546,-160.0,0.00035,30]
[359513943,1746084643555,-160.0,0.00035,30]
[359513944,1746084643565,-421.4777418,0.00035,30]
[359513945,1746084643574,-243.011363,0.00035,14]
[359513946,1746084643585,-152.842715,0.00035,14]
[359513947,1746084643595,-846.212625,0.00035,14]
[359513948,1746084643605,-846.212625,0.00035,14]
[359513949,1746084643616,-4553.886697,0.00035,2]
[359513950,1746084643626,-4553.886697,0.00035,2]
[359513951,1746084643635,-687.073448,0.00035,14]
[359513952,1746084643653,-239.880899,0.00035,14]
[359513953,1746084643665,-687.073448,0.00035,14]
[359513954,1746084643675,-239.880899,0.00035,14]
[359513956,1746084643685,-2000.0,0.00035,14]
[359513958,1746084643696,-12595.7684382,0.00035015,2]
[359513959,1746084643706,-362.0172928,0.00035151,30]
[359513960,1746084643716,-151.84017357,0.00035151,30]
[359513965,1746084646479,-253.718316,0.00034972,14]
[359513966,1746084646490,-210.17711923,0.00035151,30]
[359513967,1746084646500,-64.34774212,0.00035151,30]
[359513968,1746084742929,-528.0,0.000289,2]
[359513969,1746085629154,-260.47152955,0.00023948,2]
[359513970,1746085629177,-160.0,0.00024043,2]
[359513971,1746085629201,-1200.0,0.00024048,2]
[359513972,1746085629223,-300.0,0.00024049,2]
[359513973,1746085629245,-300.0,0.00024049,2]
[359513974,1746085629268,-300.0,0.00024049,2]
[359513975,1746085629291,-300.0,0.00024049,2]
[359513976,1746085629315,-300.0,0.00024049,2]
[359513977,1746085629336,-1057.49676149,0.0002405,2]
[359513978,1746085631158,-239.35878914,0.0002405,2]
[359513982,1746085747096,-7022.58176867,0.0002405,2]
[359513983,1746085747119,-500.0,0.00024442,2]
[359513984,1746085747142,-219.40728492,0.00024442,2]
[359513985,1746085747164,-338.65129065,0.00024442,2]
[359513986,1746085747189,-240.77590525,0.00024442,2]
[359513987,1746085747215,-500.0,0.00024442,2]
[359513988,1746085747239,-500.0,0.00024442,2]
[359513989,1746085747265,-500.0,0.00024442,2]
[359513990,1746085747288,-500.0,0.00024442,2]
[359513991,1746085747310,-500.0,0.00024442,2]
[359513992,1746085747334,-500.0,0.00024442,2]
[359513993,1746085747450,-500.0,0.00024442,2]
[359513994,1746085747496,-297.66068853,0.00024442,2]
[359513995,1746085747520,-500.0,0.00024442,2]
[359513996,1746085747542,-500.0,0.00024442,2]
[359513997,1746085747564,-158.58272456,0.00024442,2]
[359513998,1746085747587,-500.0,0.00024442,2]
[359513999,1746085747610,-500.0,0.00024442,2]
[359514000,1746085747632,-500.0,0.00024442,2]
[359514001,1746085747655,-500.0,0.00024442,2]
[359514002,1746085747679,-500.0,0.00024442,2]
[359514003,1746085747700,-500.0,0.00024442,2]
[359514004,1746085747724,-500.0,0.00024442,2]
[359514005,1746085747747,-530.16067905,0.00024442,2]
[359514006,1746085747769,-245.0182829,0.00024442,2]
[359514007,1746085747794,-373.78223519,0.00024442,2]
[359514008,1746085747818,-500.0,0.00024442,2]
[359514009,1746085747841,-500.0,0.00024442,2]
[359514010,1746085747866,-500.0,0.00024442,2]
[359514011,1746085747890,-500.0,0.00024442,2]
[359514012,1746085747912,-500.0,0.00024442,2]
[359514013,1746085747934,-500.0,0.00024442,2]
[359514014,1746085747956,-500.0,0.00024442,2]
[359514015,1746085747978,-500.0,0.00024442,2]
[359514016,1746085748000,-500.0,0.00024442,2]
[359514017,1746085748024,-500.0,0.00024442,2]
[359514018,1746085748051,-11426.04546411,0.00024442,2]
[359514019,1746085748077,-8530.0468538,0.00024442,2]
[359514020,1746085762115,-427.58445738,0.00024442,2]
[359514024,1746085825720,154.93,0.00025,30]
[359514033,1746085832496,-5228.81884026,0.00024198,2]
[359514037,1746085832509,-300.0,0.0002444,2]
[359514040,1746085832519,-300.0,0.00024441,2]
[359514042,1746085832528,-300.0,0.00024441,2]
[359514044,1746085832539,-1200.0,0.00024441,2]
[359514046,1746085832549,-152.0,0.00024441,2]
[359514048,1746085832559,-2468.41415293,0.00024442,2]
[359514050,1746085832569,-11426.04546411,0.00024442,2]
[359514052,1746085832579,-11426.04546411,0.00024442,2]
[359514054,1746085832589,-11426.04546411,0.00024442,2]
[359514056,1746085832599,-11426.04546411,0.00024442,2]
[359514058,1746085832609,-11426.04546411,0.00024442,2]
[359514060,1746085832618,-11426.04546411,0.00024442,2]
[359514063,1746085832629,-11426.04546411,0.00024442,2]
[359514064,1746085832639,-11426.04546411,0.00024442,2]
[359514067,1746085832648,-11426.04546411,0.00024442,2]
[359514069,1746085832658,-11426.04546411,0.00024442,2]
[359514071,1746085832667,-11426.04546411,0.00024442,2]
[359514073,1746085832677,-3808.68182137,0.00024442,2]
[359514075,1746085832686,-3808.68182137,0.00024442,2]
[359514077,1746085832696,-3808.68182137,0.00024442,2]
[359514079,1746085832705,-3808.68182137,0.00024442,2]
[359514081,1746085832715,-3808.68182137,0.00024442,2]
[359514083,1746085832725,-11426.04546411,0.00024442,2]
[359514085,1746085832734,-11426.04546411,0.00024442,2]
[359514087,1746085832747,-3808.68182137,0.00024442,2]
[359514089,1746085832756,-3808.68182137,0.00024442,2]
[359514091,1746085832766,-3808.68182137,0.00024442,2]
[359514093,1746085832776,-3808.68182137,0.00024442,2]
[359514095,1746085832785,-11426.04546411,0.00024442,2]
[359514097,1746085832794,-3808.68182137,0.00024442,2]
[359514099,1746085832804,-3808.68182137,0.00024442,2]
[359514100,1746085832814,-11426.04546411,0.00024442,2]
[359514101,1746085832823,-11426.04546411,0.00024442,2]
[359514103,1746085832834,-11426.04546411,0.00024442,2]
[359514104,1746085832844,-3808.68182137,0.00024442,2]
[359514105,1746085832854,-3808.68182137,0.00024442,2]
[359514106,1746085832864,-3808.68182137,0.00024442,2]
[359514107,1746085832875,-3808.68182137,0.00024442,2]
[359514108,1746085832884,-3808.68182137,0.00024442,2]
[359514109,1746085832894,-3808.68182137,0.00024442,2]
[359514110,1746085832904,-3808.68182137,0.00024442,2]
[359514111,1746085832913,-3808.68182137,0.00024442,2]
[359514112,1746085832923,-3808.68182137,0.00024442,2]
[359514113,1746085832932,-3808.68182137,0.00024442,2]
[359514114,1746085832941,-3808.68182137,0.00024442,2]
[359514115,1746085832951,-3808.68182137,0.00024442,2]
[359514116,1746085832962,-58.61395816,0.00024442,2]
[359514195,1746085838608,-237.05590346,0.00024441,2]
[359514198,1746085838619,-153.58509945,0.00024441,2]
[359514200,1746085838629,-518.54313367,0.00024441,2]
[359514202,1746085838638,-17639.40224134,0.00024442,2]
[359514204,1746085838647,-500.0,0.00024442,2]
[359514206,1746085838656,-105017.61073787,0.00024444,4]
[359514208,1746085838665,-613.77481421,0.00024473,2]
[359514210,1746085838675,-500.0,0.00024473,2]
[359514212,1746085838684,-500.0,0.00024473,2]
[359514214,1746085838693,-206.41212574,0.00024473,2]
[359514216,1746085838703,-500.0,0.00024473,2]
[359514218,1746085838713,-500.0,0.00024473,2]
[359514220,1746085838722,-500.0,0.00024473,2]
[359514222,1746085838732,-500.0,0.00024473,2]
[359514224,1746085838742,-500.0,0.00024473,2]
[359514226,1746085838754,-430.33020921,0.00024473,2]
[359514228,1746085838763,-504.97800323,0.00024473,2]
[359514230,1746085838773,-500.0,0.00024473,2]
[359514232,1746085838782,-500.0,0.00024473,2]
[359514234,1746085838792,-300.0,0.00024473,2]
[359514236,1746085838802,-500.0,0.00024473,2]
[359514238,1746085838811,-609.45395864,0.00024473,2]
[359514240,1746085838820,-500.0,0.00024473,2]
[359514242,1746085838830,-501.89805431,0.000245,2]
[359514244,1746085838839,-500.0,0.000245,2]
[359514246,1746085838848,-500.0,0.000245,2]
[359514248,1746085838857,-482.70330786,0.000248,2]
[359514250,1746085838867,-482.70330786,0.00024835,2]
[359514252,1746085838877,-199.97334055,0.00024898,2]
[359514254,1746085838886,-50546.9082617,0.000249,2]
[359514256,1746085838896,-501.98415373,0.00025,2]
[359514258,1746085838906,-500.0,0.00025,2]
[359514260,1746085838915,-422.10997939,0.00025,2]
[359514262,1746085838924,-501.50885988,0.00025,2]
[359514263,1746085838933,-500.0,0.00025,2]
[359514265,1746085838942,-212.17294433,0.00025,2]
[359514266,1746085838951,-500.0,0.00025,2]
[359514267,1746085838960,-169.8954447,0.00025,2]
[359514268,1746085838969,-500.0,0.00025,2]
[359514269,1746085838978,-210.60272568,0.000253,12]
[359514270,1746085838987,-24900.0,0.00025825,2]
[359514271,1746085838997,-600.0,0.00026116,2]
[359514272,1746085839006,-287.0,0.00026492,2]
[359514273,1746085839015,-420.0,0.00026493,2]
[359514274,1746085839024,-367.0,0.00026493,2]
[359514275,1746085839033,-1421.0,0.00026614,2]
[359514276,1746085839043,-302.563682,0.00027215,2]
[359514277,1746085839052,-402.47583889,0.00027397,60]
[359514278,1746085839061,-938.372788,0.00027397,2]
[359514279,1746085839070,-900.0,0.0002776,5]
[359514280,1746085839080,-500.31797548,0.00028075,2]
[359514281,1746085839089,-587.0,0.00028718,2]
[359514282,1746085839100,-472.0,0.000289,2]
[359514283,1746085839110,-1200.0,0.00029404,5]
[359514284,1746085839120,-466.76589877,0.00029479,2]
[359514285,1746085839130,-325.4879353,0.00029689,2]
[359514286,1746085839139,-203.850977,0.00029689,2]
[359514287,1746085839148,-1000.0,0.00029952,5]
[359514288,1746085839158,-500.0,0.00029952,5]
[359514289,1746085839167,-1000.0,0.00029952,5]
[359514290,1746085839176,-1009.41998731,0.00029952,5]
[359514291,1746085839185,-1000.0,0.00029952,5]
[359514292,1746085839195,-1000.0,0.00029952,5]
[359514293,1746085839204,-1000.0,0.00029952,5]
[359514294,1746085839213,-1000.0,0.00029952,5]
[359514295,1746085839222,-191.682165,0.00029952,3]
[359514296,1746085839234,-1000.0,0.00029952,5]
[359514297,1746085839243,-500.0,0.00029952,5]
[359514298,1746085839253,-25273.4541308,0.00029969,2]
[359514299,1746085839262,-482.70330786,0.00029969,2]
[359514300,1746085839271,-1000.0,0.00029979,5]
[359514301,1746085839280,-1000.0,0.00029979,5]
[359514302,1746085839289,-193.0,0.0003,2]
[359514303,1746085839300,-10000.0,0.00030293,2]
[359514304,1746085839310,-1000.0,0.00030479,5]
[359514305,1746085839320,-502.34817369,0.00030479,5]
[359514306,1746085839330,-1000.0,0.00030479,5]
[359514307,1746085839339,-160.0,0.00030952,2]
[359514308,1746085839348,-12595.7684382,0.00030952,2]
[359514309,1746085839358,-421.4777418,0.00030952,2]
[359514310,1746085839367,-1500.0,0.00031048,5]
[359514311,1746085839376,-823.0,0.00031129,2]
[359514312,1746085839385,-250.0,0.00031974,2]
[359514313,1746085839395,-151.0,0.00032,7]
[359514314,1746085839404,-3766.07,0.000329,7]
[359514315,1746085839414,-1293.12,0.000329,30]
[359514316,1746085839423,-938.372788,0.00033165,2]
[359514317,1746085839432,-1152.0,0.00033742,2]
[359514318,1746085839441,-250.0,0.00034,30]
[359514319,1746085839451,-362.0172928,0.00034027,30]
[359514320,1746085839460,-297.6695507,0.00034192,30]
[359514321,1746085839469,-362.0172928,0.00034192,30]
[359514322,1746085839478,-362.0172928,0.00034192,30]
[359514323,1746085839487,-724.0345856,0.00034192,30]
[359514324,1746085839497,-398.0781755,0.00034356,30]
[359514325,1746085839506,-25273.4541308,0.0003449,2]
[359514326,1746085839515,-482.70330786,0.0003449,2]
[359514327,1746085839524,-2637.217492,0.000345,30]
[359514328,1746085839534,-179.96390662,0.00034705,13]
[359514329,1746085839543,-2000.0,0.00034775,4]
[359514330,1746085839553,-40482.76848247,0.0003499,2]
[359514331,1746085839562,-5156.86254901,0.0003499,3]
[359514332,1746085839571,-887.504915,0.0003499,14]
[359514333,1746085839580,-887.504915,0.0003499,14]
[359514334,1746085839589,-285.138111,0.0003499,14]
[359514335,1746085839600,-285.138111,0.0003499,14]
[359514336,1746085839609,-50546.9082617,0.0003499,2]
[359514337,1746085839618,-965.40661572,0.0003499,2]
[359514338,1746085839628,-151.0,0.00035,14]
[359514339,1746085839638,-99512.65063074,0.00035,30]
[359514340,1746085839648,-1805.57899218,0.0003505,2]
[359514341,1746085839658,-179.89467565,0.0003515,30]
[359514342,1746085839668,-200.0,0.0003515,30]
[359514343,1746085839677,-151.0,0.000353,14]
[359514344,1746085839687,-151.0,0.000356,16]
[359514345,1746085839696,-1293.12,0.000356,30]
[359514346,1746085839776,-151.0,0.00035616,14]
[359514347,1746085839786,-887.504915,0.00035616,14]
[359514348,1746085839797,-887.504915,0.00035616,14]
[359514349,1746085839806,-285.138111,0.00035616,14]
[359514350,1746085839816,-285.138111,0.00035616,14]
[359514351,1746085839827,-386.43135568,0.00035773,5]
[359514352,1746085839836,-160.0,0.0003579,3]
[359514353,1746085839846,-160.0,0.0003579,3]
[359514354,1746085839856,-160.0,0.0003579,3]
[359514355,1746085839866,-182.07995741,0.0003579,3]
[359514356,1746085839875,-798.60071232,0.0003579,3]
[359514357,1746085839886,-421.4777418,0.0003579,3]
[359514358,1746085839896,-12595.7684382,0.0003579,3]
[359514359,1746085839906,-25273.4541308,0.0003579,3]
[359514360,1746085839916,-482.70330786,0.0003579,3]
[359514361,1746085839925,-6046.9721348,0.000358,30]
[359514396,1746085840813,-1400.71100295,0.000358,30]
[359514402,1746085840855,-17062.36445122,0.000358,30]
[359514976,1746085846667,-199.97334055,0.0002395,2]
[359514979,1746085846691,-160.0,0.00030755,2]
[359514982,1746085846711,-5266.24523145,0.000358,30]
[359514984,1746085846727,-2538.61351715,0.000358,30]
[359515505,1746085967654,-1000.0,0.0002395,2]
[359515506,1746085967676,-7589.0,0.00024005,2]
[359515507,1746085977313,-2411.0,0.00024005,2]
[359515508,1746085977335,-150.75707477,0.00024241,2]
[359515509,1746085977360,-1652.85733144,0.00024341,2]
[359515510,1746085977383,-300.0,0.0002444,2]
[359515511,1746085983574,300.0,0.00024439,2]
[359515512,1746085987634,-165.93913242,0.0002444,2]
[359515513,1746085987657,-362.98019357,0.0002444,2]
[359515514,1746085987678,-249.44647588,0.0002444,2]